Cogmind - Beta 12 @@@ ROGUE MODE // 2024.01.31 @ 19:10:21 Player: M4NZ Result: Destroyed by S-43 Plague with Heavy Machine Gun Performance ------------- Evolutions (7) 3500 Regions Visited (10) 2000 Robots Destroyed (121) 605 Value Destroyed (4648) 4648 Prototype IDs (15) 300 Alien Tech Used (0) 0 Bonus (761) 761 TOTAL SCORE: 11814 Bonus ------- High Alert Combat Kills 261 Entered DSFs 500 Cogmind --------- Core Integrity 0/1300 Matter 300/300 Energy 99/100 System Corruption 6% Temperature Cool (0) Movement Core (50) Location -3/Research Parts ------- > --- POWER (2) -------- (None) > --- PROPULSION (3) --- (None) > --- UTILITY (14) ----- Enhanced Optical Array Advanced Target Analyzer Core Analyzer > --- WEAPON (2) ------- (None) > --- INVENTORY (5) ---- Improved Fusion Compressor Particle Reactor Matter Compressor (237) Core Analyzer Peak State ------------ > --- POWER ------------ Light Antimatter Reactor Light Antimatter Reactor > --- PROPULSION ------- Combat Airjet Combat Airjet Combat Airjet > --- UTILITY ---------- Advanced Cooling System Matter Compressor Advanced Weight Redist. System Enhanced Optical Array Enhanced Optical Array Advanced Sensor Array Improved Signal Interpreter Core Analyzer Improved Phase Shifter Improved Phase Shifter Improved Hacking Suite Improved Hacking Suite Improved Hacking Suite Improved Hacking Suite > --- WEAPON ----------- Wave Gun Hypervelocity Mass Driver > --- INVENTORY -------- Combat Airjet Improved Linear Gravjet Wave Gun Hypervelocity Mass Driver [Rating: 114] Favorites ----------- Power Nuclear Core Engine Ion Engine Power Core Nuclear Core Reactor Micro Antimatter Reactor Propulsion Armored Treads Treads Armored Treads Leg Carbon-fiber Leg Hover Unit Combat Airjet Flight Unit Q-thruster Utility Advanced Targeting Computer Device Improved Sensor Array Storage Medium Storage Unit Processor Advanced Targeting Computer Hackware Improved Hacking Suite Weapon Assault Rifle Energy Gun Wave Gun Energy Cannon Plasma Cannon Ballistic Gun Assault Rifle Ballistic Cannon Assault Cannon Launcher Heavy Rocket Launcher Build | -11 -10 -9 -8 -7 -7 -6 -5 -5 -4 -3 ------- Run | Jun Mat Mat Mat Fac Sto Fac Fac DSF Fac Res Slots Evolved 14 | . . 2 2 2 . 2 2 . 2 2 Power 1 | . . . . . . . 1 . . . Propulsion 1 | . . . . . . 1 . . . . Utility 12 | . . 2 2 2 . 1 1 . 2 2 Weapon . | . . . . . . . . . . . Parts Attached 149 | 7 8 6 12 19 25 8 2 13 8 41 Power 26 | 1 2 . 1 2 5 1 . 2 1 11 Engine 6 | 1 2 . . 1 1 1 . . . . Core 12 | . . . 1 1 4 . . 2 1 3 Reactor 8 | . . . . . . . . . . 8 Propulsion 26 | 3 1 . 2 5 4 2 . 3 . 6 Treads 9 | 2 1 . . 4 2 . . . . . Leg 8 | 1 . . 2 1 2 2 . . . . Wheel . | . . . . . . . . . . . Hover 8 | . . . . . . . . 3 . 5 Flight 1 | . . . . . . . . . . 1 Utility 57 | 1 2 5 6 8 5 3 2 6 6 13 Device 29 | . 1 2 3 4 2 3 1 . 5 8 Storage 6 | 1 1 1 . . 1 . 1 . 1 . Processor 16 | . . 2 2 3 2 . . 2 . 5 Hackware 6 | . . . 1 1 . . . 4 . . Protection . | . . . . . . . . . . . Artifact . | . . . . . . . . . . . Weapon 40 | 2 3 1 3 4 11 2 . 2 1 11 Energy Gun 17 | 1 1 . 1 . 4 2 . 2 1 5 Energy Cannon 3 | . . . . . 2 . . . . 1 Ballistic Gun 7 | 1 1 1 2 2 . . . . . . Ballistic Cannon 12 | . 1 . . 2 4 . . . . 5 Launcher 1 | . . . . . 1 . . . . . Special Weapon . | . . . . . . . . . . . Impact Weapon . | . . . . . . . . . . . Slashing Weapon . | . . . . . . . . . . . Piercing Weapon . | . . . . . . . . . . . Special Melee Weapon . | . . . . . . . . . . . Unidentified Prototypes 5 | . . . . . 4 1 . . . . Parts Lost 59 | . . . 1 5 11 1 . 12 . 29 Power 10 | . . . . 1 3 . . 2 . 4 Propulsion 12 | . . . . 1 2 . . 2 . 7 Utility 25 | . . . . 2 4 . . 6 . 13 Weapon 12 | . . . 1 1 2 1 . 2 . 5 Highest Loss Streak 15 | . . . 1 3 3 1 . 8 . 15 To Critical Strikes . | . . . . . . . . . . . Average Slot Usage (%) 96 | . 98 100 99 99 97 99 93 80 95 89 Engine 3 | . 14 11 . . 3 1 5 2 . . Core 3 | . . . 8 6 3 4 . 2 7 3 Treads 10 | . 27 22 2 10 14 . . . . . Leg 4 | . . . 15 4 . 20 17 5 . . Hover 2 | . . . . . . . . 9 15 13 Device 11 | . 13 17 9 7 12 5 8 5 11 17 Storage 8 | . 14 11 9 7 7 13 13 7 4 3 Processor 26 | . . 15 27 29 37 40 35 28 23 22 Hackware 6 | . . . 9 14 1 . . 8 21 15 Energy Gun 2 | . 1 . 1 . 2 9 11 8 10 5 Energy Cannon 1 | . . . . . 4 . . . . . Ballistic Gun 5 | . 21 11 9 8 . . . . . . Ballistic Cannon 5 | . 5 11 7 5 6 3 . . . 1 Naked Turns . | . . . . . . . . . . . Heaviest Build 53 | 13 16 21 26 30 39 35 37 34 34 53 Greatest Support 45 | 40 40 40 40 40 40 35 35 36 36 45 Greatest Overweight (x) 8 | 2 . . 1 1 8 . 1 2 . 2 Average Overweight (x) . | . . . . . . . . . . . Largest Inventory Capacity 10 | 8 8 10 10 10 10 10 10 10 5 5 Average Capacity 8 | 7 8 8 10 10 10 10 10 6 5 5 Most Carried 10 | 3 8 8 10 10 10 10 10 9 5 5 Average Carried 8 | 1 7 7 9 9 9 8 9 6 4 4 Final Capacity 10 | 8 8 10 10 10 10 10 10 5 5 5 Final Carried 10 | 3 8 8 9 10 9 10 9 5 5 4 Class Distribution -------------------- 35% | Skirmisher 25% | Mutant 11% | Hacker-Scout 11% | Hacker-Skirmisher 9% | Scavenger-Mutant 6% | Hacker-Mutant Dominant Class ---------------- Mutant | -10/Materials Mutant | -9/Materials Skirmisher | -8/Materials Hacker-Skirmisher | -7/Factory Skirmisher | -7/Storage Scavenger-Mutant | -6/Factory Scavenger-Mutant | -5/Factory Hacker-Mutant | -5/DSF Hacker-Scout | -4/Factory Hacker-Scout | -3/Research Resources | -11 -10 -9 -8 -7 -7 -6 -5 -5 -4 -3 ----------- Run | Jun Mat Mat Mat Fac Sto Fac Fac DSF Fac Res Matter Collected 3950 | 212 422 230 427 624 807 166 . 76 . 986 Remotely . | . . . . . . . . . . . Salvage Created 4970 | . 541 217 436 474 2180 163 . 62 . 897 Parts 240 | . 38 17 12 27 91 4 . 2 . 49 Haulers Intercepted 1 | . . . . . 1 . . . . . Recyclers Shooed 7 | . 2 1 . 2 1 . . . . 1 Parts Field Recycled . | . . . . . . . . . . . Retrieved Matter . | . . . . . . . . . . . Parts Self-Destructed . | . . . . . . . . . . . Prevented . | . . . . . . . . . . . Kills | -11 -10 -9 -8 -7 -7 -6 -5 -5 -4 -3 ------- Run | Jun Mat Mat Mat Fac Sto Fac Fac DSF Fac Res Combat Hostiles Destroyed 95 | . 12 5 9 9 42 3 . 1 . 14 Guns 32 | . 9 2 5 3 2 3 . 1 . 7 Cannons 62 | . 3 3 4 6 39 . . . . 7 Classes Destroyed 13 | . 6 . 1 3 2 . . 1 . . Worker 6 | . 1 . . . 4 . . . . 1 Builder 2 | . . . . 1 . . . . . 1 Hauler 1 | . . . . . 1 . . . . . Recycler 9 | . 1 1 1 2 3 . . . . 1 Operator 4 | . 2 1 . . 1 . . . . . Watcher 7 | . 1 2 . 2 2 . . . . . Swarmer 15 | . 3 3 . 3 . . . . . 6 Grunt 51 | . 9 2 7 2 25 3 . . . 3 Duelist 1 | . . . . 1 . . . . . . Sentry 17 | . . . 2 2 13 . . . . . Specialist 1 | . . . . . . . . 1 . . Hunter 3 | . . . . . 1 . . . . 2 Programmer 7 | . . . . 1 3 . . . . 3 Best Kill Streak 10 | . 4 3 4 3 10 2 . 1 . 6 Combat Bots Only 10 | . 3 3 3 3 10 2 . 1 . 6 Max Kills in Single Turn 2 | . 2 2 1 1 2 1 . 1 . 1 Gunslinging 1 | . 1 . . . . . . . . . Exploded . | . . . . . . . . . . . Melee . | . . . . . . . . . . . Uniques/NPCs Destroyed . | . . . . . . . . . . . Combat | -11 -10 -9 -8 -7 -7 -6 -5 -5 -4 -3 -------- Run | Jun Mat Mat Mat Fac Sto Fac Fac DSF Fac Res Damage Taken 10173 | . 499 114 680 1092 2870 137 . 1199 . 3582 Core 2515 | . 42 38 126 175 480 35 . 304 . 1315 Absorbed by Shields 70 | . . . . . . 16 . 54 . . Regen/Repaired (Parts) 316 | . 118 . . . 198 . . . . . Core Remaining (%) 77 | 100 83 90 77 . 6 95 . 69 100 . Volleys Fired 352 | . 52 19 43 45 120 10 . 2 . 61 Largest 2 | . 2 2 2 2 2 2 . 2 . 2 Hottest 162 | . 55 55 81 72 128 114 . 90 . 162 Shots Fired 662 | . 104 38 86 90 224 20 . 4 . 96 Gun 312 | . 82 19 56 47 27 19 . 4 . 58 Cannon 343 | . 22 19 30 43 190 1 . . . 38 Launcher 7 | . . . . . 7 . . . . . Special . | . . . . . . . . . . . Kinetic 465 | . 104 38 74 90 120 1 . . . 38 Thermal 175 | . . . 12 . 85 19 . 4 . 55 Explosive 7 | . . . . . 7 . . . . . Electromagnetic 15 | . . . . . 12 . . . . 3 Robot Hit Streak 42 | . 10 4 13 21 42 19 . 2 . 10 Robot Miss Streak 8 | . 8 3 3 5 5 . . 1 . 4 Penetration Max 1 | . . . . . . . . . . 1 Secondary Targets 2 | . 2 . . . . . . . . . Max Gunslinging Chain 1 | . 1 . . . . . . . . . Shots Hit Robots 472 | . 64 21 65 64 177 18 . 2 . 61 Core Hits 239 | . 26 12 22 26 108 9 . 2 . 34 Critical Kills 5 | . . . . . . . . . . 5 Critical Parts Destroyed 8 | . . . 1 . . . . . . 7 Critical Strikes 28 | . . 1 1 3 5 1 . . . 17 Burn 6 | . . . . . . 1 . . . 5 Destroy 13 | . . . 1 . . . . . . 12 Blast 8 | . . 1 . 3 4 . . . . . Corrupt 1 | . . . . . 1 . . . . . Melee Attacks . | . . . . . . . . . . . Impact . | . . . . . . . . . . . Slashing . | . . . . . . . . . . . Piercing . | . . . . . . . . . . . Sneak Attacks . | . . . . . . . . . . . Combat Hostiles . | . . . . . . . . . . . Follow-up Attacks . | . . . . . . . . . . . Damage Inflicted 10229 | . 894 338 1070 1246 4874 366 . 60 . 1381 Guns 3751 | . 600 153 697 434 500 345 . 41 . 981 Cannons 6078 | . 294 185 373 812 4018 21 . . . 375 Explosions 340 | . . . . . 340 . . . . . Melee . | . . . . . . . . . . . Ramming 60 | . . . . . 16 . . 19 . 25 Kinetic 6139 | . 894 338 952 1246 2313 21 . . . 375 Thermal 3306 | . . . 118 . 1865 345 . 41 . 937 Explosive 340 | . . . . . 340 . . . . . Electromagnetic 384 | . . . . . 340 . . . . 44 Impact . | . . . . . . . . . . . Slashing . | . . . . . . . . . . . Piercing . | . . . . . . . . . . . Highest Corruption 6 | . . . . . 3 . . 3 . 6 Average Corruption 3 | . . . . . 2 . . 1 . 5 Corruption Purged . | . . . . . . . . . . . Corruption Blocked . | . . . . . . . . . . . Effects 14 | . . . . . 6 . . 2 . 6 Message Errors 3 | . . . . . 3 . . . . . Matter Fused 6 | . . . . . 2 . . 1 . 3 Heat Flow Errors 2 | . . . . . . . . . . 2 Energy Discharges 3 | . . . . . 1 . . 1 . 1 Overload Shots . | . . . . . . . . . . . Overflow Damage 85 | . 33 . . 28 24 . . . . . Projectiles 85 | . 33 . . 28 24 . . . . . Explosions . | . . . . . . . . . . . Melee . | . . . . . . . . . . . Knockbacks 58 | . 6 4 12 9 21 . . . . 6 Impact . | . . . . . . . . . . . Kinetic 52 | . 6 3 9 9 19 . . . . 6 Secondary 6 | . . 1 3 . 2 . . . . . Self-Inflicted Damage 62 | . . . . . 42 . . 9 . 11 Shots 1 | . . . . . 1 . . . . . Rammed 13 | . . . . . 3 . . 2 . 8 Targets Rammed 13 | . . . . . 3 . . 2 . 8 Kicked . | . . . . . . . . . . . Crushed . | . . . . . . . . . . . Highest Temperature 421 | . . 1 349 16 421 42 . . . 215 Average Temperature 87 | . . 1 91 6 111 21 . . . 57 Received Heat Transfer 2273 | . 237 18 369 210 1056 64 . . . 319 Effects 5 | . . . 2 . 3 . . . . . Shutdowns 2 | . . . . . 2 . . . . . Energy Bleed 1 | . . . . . 1 . . . . . Interference 2 | . . . 2 . . . . . . . Siege Activations . | . . . . . . . . . . . Robots Corrupted . | . . . . . . . . . . . Combat Hostiles . | . . . . . . . . . . . Parts Fried 2 | . . . . . 2 . . . . . Impact Corruptions . | . . . . . . . . . . . Robots Melted 1 | . . . . . 1 . . . . . Combat Hostiles 1 | . . . . . 1 . . . . . Parts Melted 10 | . . . . . 8 1 . . . 1 Heat Transferred 6441 | . . . 296 . 3629 703 . 74 . 1739 Parts Sabotaged . | . . . . . . . . . . . Parts Stolen . | . . . . . . . . . . . Parts Stripped . | . . . . . . . . . . . Power Chain Reactions . | . . . . . . . . . . . Missiles Intercepted . | . . . . . . . . . . . Alert | -11 -10 -9 -8 -7 -7 -6 -5 -5 -4 -3 ------- Run | Jun Mat Mat Mat Fac Sto Fac Fac DSF Fac Res Peak Influence 743 | . 253 242 141 109 743 335 103 92 2 315 Initial 304 | . . 42 17 6 39 304 98 72 2 . Average 171 | . 99 160 79 48 368 295 98 37 2 64 Maximum Alert Level 3 | . 1 1 . . 3 1 . . . 1 Low Security (%) 64 | 100 91 66 100 100 10 9 100 100 100 88 Level 1 24 | . 8 33 . . 52 90 . . . 11 Level 2 10 | . . . . . 36 . . . . . Level 3 . | . . . . . 1 . . . . . Level 4 . | . . . . . . . . . . . Level 5 . | . . . . . . . . . . . High Security . | . . . . . . . . . . . Max Security . | . . . . . . . . . . . Squads Dispatched 31 | . 4 . 4 1 15 1 . 2 . 4 Investigation 5 | . 1 . 1 . 3 . . . . . Extermination 5 | . . . . 1 3 . . . . 1 Reinforcement 13 | . 3 . 3 . 3 1 . 2 . 1 Assault . | . . . . . . . . . . . Garrison 8 | . . . . . 6 . . . . 2 Intercept . | . . . . . . . . . . . Searches Triggered . | . . . . . . . . . . . Construction Impeded . | . . . . . . . . . . . Haulers Reinforced 2 | . . . . . 2 . . . . . Active Scanning Responses . | . . . . . . . . . . . Cargo Convoy Interrupts . | . . . . . . . . . . . Stealth | -11 -10 -9 -8 -7 -7 -6 -5 -5 -4 -3 --------- Run | Jun Mat Mat Mat Fac Sto Fac Fac DSF Fac Res Distress Signals 8 | . 1 . . 1 4 . . . . 2 Communications Jammed . | . . . . . . . . . . . Distress Signals . | . . . . . . . . . . . Times Spotted 159 | . 20 8 14 17 45 4 . 8 . 43 Peak Tracking Total 14 | . 4 3 3 4 11 2 . 5 . 14 Tactical Retreats 11 | . . . . . . . . 2 . 9 Traps | -11 -10 -9 -8 -7 -7 -6 -5 -5 -4 -3 ------- Run | Jun Mat Mat Mat Fac Sto Fac Fac DSF Fac Res Traps Triggered 12 | . 2 . 1 1 1 . . 4 . 3 Indirectly . | . . . . . . . . . . . Trap Hack Attempts . | . . . . . . . . . . . Triggered . | . . . . . . . . . . . Disarmed . | . . . . . . . . . . . Reprogrammed . | . . . . . . . . . . . Reused . | . . . . . . . . . . . Traps Extracted . | . . . . . . . . . . . Installed . | . . . . . . . . . . . Triggered . | . . . . . . . . . . . Machines | -11 -10 -9 -8 -7 -7 -6 -5 -5 -4 -3 ---------- Run | Jun Mat Mat Mat Fac Sto Fac Fac DSF Fac Res Machines Disabled 4 | . 1 1 . . 2 . . . . . Max in Single Turn 1 | . 1 1 . . 1 . . . . . Garrison Access 4 | . . . 1 1 . . . . . 2 Machines Repaired . | . . . . . . . . . . . Machines Sabotaged . | . . . . . . . . . . . Overloaded Fab Kills . | . . . . . . . . . . . Hacking | -11 -10 -9 -8 -7 -7 -6 -5 -5 -4 -3 --------- Run | Jun Mat Mat Mat Fac Sto Fac Fac DSF Fac Res Machines Accessed 25 | . 5 1 1 1 11 1 1 . . 4 Terminals 17 | . 4 1 . . 8 1 1 . . 2 Fabricators . | . . . . . . . . . . . Repair Stations 3 | . 1 . . . 2 . . . . . Recycling Units 1 | . . . . . 1 . . . . . Scanalyzers . | . . . . . . . . . . . Garrison Access 4 | . . . 1 1 . . . . . 2 Total Hacks 57 | . 12 2 1 1 32 1 1 . . 7 Successful 31 | . 8 1 1 1 14 1 1 . . 4 Failed 26 | . 4 1 . . 18 . . . . 3 Catastrophic 4 | . . . . . 3 . . . . 1 Database Lockouts . | . . . . . . . . . . . Manual 1 | . . . . . 1 . . . . . Terminals 41 | . 9 2 . . 23 1 1 . . 5 Fabricators . | . . . . . . . . . . . Repair Stations 10 | . 3 . . . 7 . . . . . Recycling Units 2 | . . . . . 2 . . . . . Scanalyzers . | . . . . . . . . . . . Garrison Access 4 | . . . 1 1 . . . . . 2 Terminal Hacks 19 | . 6 1 . . 8 1 1 . . 2 Record 1 | . . . . . . 1 . . . . Robot Analysis 1 | . . . . . . . . . . 1 Prototype ID Bank 6 | . 3 1 . . 2 . . . . . Open Door 2 | . . . . . 2 . . . . . Open DSF 1 | . . . . . . . 1 . . . Locate Traps 1 | . . . . . 1 . . . . . Dispatch Records 1 | . . . . . 1 . . . . . Reinforcement Status 1 | . . . . . 1 . . . . . Recall Extermination 1 | . . . . . . . . . . 1 Hauler Manifests 1 | . 1 . . . . . . . . . Zone Layout 3 | . 2 . . . 1 . . . . . Fabricator Hacks . | . . . . . . . . . . . Repair Station Hacks 7 | . 2 . . . 5 . . . . . Scan Component 4 | . 1 . . . 3 . . . . . Repair 3 | . 1 . . . 2 . . . . . Recycling Unit Hacks 1 | . . . . . 1 . . . . . Report Inventory 1 | . . . . . 1 . . . . . Scanalyzer . | . . . . . . . . . . . Garrison Access Hacks 4 | . . . 1 1 . . . . . 2 Seal Access 4 | . . . 1 1 . . . . . 2 Unauthorized Hacks . | . . . . . . . . . . . Terminals . | . . . . . . . . . . . Fabricators . | . . . . . . . . . . . Repair Stations . | . . . . . . . . . . . Recycling Units . | . . . . . . . . . . . Scanalyzers . | . . . . . . . . . . . Garrison Access . | . . . . . . . . . . . Data Cores Recovered 1 | . . 1 . . . . . . . . Used . | . . . . . . . . . . . Hacking Detections 16 | . 3 1 . . 10 . . . . 2 Full Trace Events 3 | . . . . . 3 . . . . . Feedback Events . | . . . . . . . . . . . Feedback Blocked . | . . . . . . . . . . . Robot Schematics Acquired . | . . . . . . . . . . . Robots Built . | . . . . . . . . . . . Authchips . | . . . . . . . . . . . Time . | . . . . . . . . . . . Total Robot Build Rating . | . . . . . . . . . . . Part Schematics Acquired . | . . . . . . . . . . . Parts Built . | . . . . . . . . . . . Authchips . | . . . . . . . . . . . Time . | . . . . . . . . . . . Total Part Build Rating . | . . . . . . . . . . . Parts Repaired 3 | . 1 . . . 2 . . . . . Time 83 | . 26 . . . 57 . . . . . Parts Recycled . | . . . . . . . . . . . Recycled Matter . | . . . . . . . . . . . Retrieved Matter . | . . . . . . . . . . . Retrieved Components . | . . . . . . . . . . . Parts Scanalyzed . | . . . . . . . . . . . Part Schematics Acquired . | . . . . . . . . . . . Parts Damaged . | . . . . . . . . . . . Bothacking | -11 -10 -9 -8 -7 -7 -6 -5 -5 -4 -3 ------------ Run | Jun Mat Mat Mat Fac Sto Fac Fac DSF Fac Res Used RIF Installer . | . . . . . . . . . . . Robots Hacked . | . . . . . . . . . . . Non-combat . | . . . . . . . . . . . Combat . | . . . . . . . . . . . Robot Hacks Applied . | . . . . . . . . . . . Relay Couplers Released 3 | . . . . . . . . . . 3 Programmers 3 | . . . . . . . . . . 3 Fabnet Peak Effective % . | . . . . . . . . . . . Robots Rewired . | . . . . . . . . . . . Allies Hacked . | . . . . . . . . . . . Hacks Repelled . | . . . . . . . . . . . Allies | -11 -10 -9 -8 -7 -7 -6 -5 -5 -4 -3 -------- Run | Jun Mat Mat Mat Fac Sto Fac Fac DSF Fac Res Total Allies . | . . . . . . . . . . . Largest Group . | . . . . . . . . . . . Highest-Rated Group . | . . . . . . . . . . . Highest-Rated Ally . | . . . . . . . . . . . Total Orders . | . . . . . . . . . . . Ally Attacks . | . . . . . . . . . . . Total Damage . | . . . . . . . . . . . Kills . | . . . . . . . . . . . Allies Corrupted . | . . . . . . . . . . . Allies Melted . | . . . . . . . . . . . Intel | -11 -10 -9 -8 -7 -7 -6 -5 -5 -4 -3 ------- Run | Jun Mat Mat Mat Fac Sto Fac Fac DSF Fac Res Robot Analysis Total 1 | . . . . . . . . . . 1 Derelict Logs Recovered . | . . . . . . . . . . . Drone Launches 4 | . . . . . 2 2 . . . . Drone Recoveries 2 | . . . . . 2 . . . . . Exploration | -11 -10 -9 -8 -7 -7 -6 -5 -5 -4 -3 ------------- Run | Jun Mat Mat Mat Fac Sto Fac Fac DSF Fac Res Turns Passed 7605 | 74 946 401 827 1157 2123 483 145 152 133 1164 Spaces Moved 4403 | 41 439 201 331 617 917 344 96 120 158 1139 Core 115 | 11 . . . . 1 . . . . 103 Treads 1981 | 19 439 201 52 375 895 . . . . . Legs 1024 | 11 . . 279 242 21 344 96 31 . . Wheels . | . . . . . . . . . . . Hover 1282 | . . . . . . . . 89 158 1035 Flight 1 | . . . . . . . . . . 1 Fastest Speed 40 | 50 160 160 120 120 170 120 120 74 74 40 Average Speed 127 | 150 160 160 126 150 170 120 145 90 74 73 Slowest Speed 450 | 190 160 160 240 250 450 120 190 190 74 150 Overloaded Moves . | . . . . . . . . . . . Propulsion Burnouts . | . . . . . . . . . . . Robots Hopped . | . . . . . . . . . . . Cave-ins Triggered . | . . . . . . . . . . . Exploration Rate (%) 32 | 3 62 22 28 15 95 9 4 96 5 22 Regions Visited 10 Branch Regions 1 Pre-discovered Areas . | . . . . . . . . . . . Known Exits Taken 7 | . . 1 1 1 1 1 1 . 1 . Unknown Exits Taken 2 | 1 1 . . . . . . . . . Scrap Searched . | . . . . . . . . . . . Spaces Dug . | . . . . . . . . . . . Terrain Destroyed 32 | . . . . 7 21 . . . . 4 Melee . | . . . . . . . . . . . Projectile 20 | . . . . 7 9 . . . . 4 AOE 12 | . . . . . 12 . . . . . Terrain Rammed . | . . . . . . . . . . . Walls Destroyed . | . . . . . . . . . . . Machines Disabled . | . . . . . . . . . . . Actions | -11 -10 -9 -8 -7 -7 -6 -5 -5 -4 -3 --------- Run | Jun Mat Mat Mat Fac Sto Fac Fac DSF Fac Res Total 5739 | 50 582 246 662 758 1250 397 102 155 171 1366 Wait 649 | . 66 8 263 54 150 21 . 1 . 86 Move 4394 | 40 438 200 330 616 916 343 95 120 157 1139 Hop . | . . . . . . . . . . . Pick Up 74 | 2 8 6 6 12 19 7 2 4 3 5 Fast Attach 58 | 7 5 1 2 1 6 . 1 11 5 19 Attach 42 | . 1 3 4 6 11 5 . 1 1 10 Detach 11 | 1 2 . 1 1 1 2 . . . 3 Swap 50 | . 2 2 6 12 9 3 1 1 2 12 Drop 72 | . 8 7 7 11 15 4 3 4 3 10 Fire 352 | . 52 19 43 45 120 10 . 2 . 61 Melee . | . . . . . . . . . . . Ram 9 | . . . . . . . . 1 . 8 Kick . | . . . . . . . . . . . Crush 3 | . . . . . 3 . . . . . Escape Stasis 23 | . . . . . . . . 10 . 13 Rewire 2 | . . . . . . 2 . . . . Trap . | . . . . . . . . . . . Miscellaneous . | . . . . . . . . . . . Route ------- -11/Junkyard -10/Materials (discovered 3 exits: *Mat x2 / [*Min]) -9/Materials -8/Materials -7/Factory (discovered 3 exits: *Sto / *Low x2) -7/Storage (discovered 2 exits: *Fac / [Rec]) -6/Factory (discovered 2 exits: *Fac / *Low) -5/Factory -5/DSF -4/Factory -3/Research History --------- Turn | Location | Event 28 | -11/Junkyard | Discovered new exit (range 16) 75 | -11/Junkyard | Entered Materials 304 | -10/Materials | Build established: Mutant 434 | -10/Materials | Discovered new exit (range 15) 546 | -10/Materials | Discovered new exit (range 16) 896 | -10/Materials | Discovered new exit (range 8) 932 | -10/Materials | Repaired Lgt. Treads 1021 | -10/Materials | Entered another Materials area 1021 | -9/Materials | Evolved 2 slots: Utility x2 1344 | -9/Materials | Discovered new exit (range 5) 1355 | -9/Materials | Identified exit to Materials 1422 | -9/Materials | Entered another Materials area 1422 | -8/Materials | Evolved 2 slots: Utility x2 1570 | -8/Materials | Build established: Skirmisher 2171 | -8/Materials | Discovered new exit (range 19) 2247 | -8/Materials | Identified exit to Factory 2249 | -8/Materials | Entered Factory 2249 | -7/Factory | Evolved 2 slots: Utility x2 2278 | -7/Factory | Discovered new exit (range 11) 2290 | -7/Factory | Identified exit to Lower Caves 2521 | -7/Factory | Lost 3 parts (1p1n1u) 2862 | -7/Factory | Build established: Hacker-Skirmisher 3006 | -7/Factory | Discovered exit to Lower Caves (range 6) 3403 | -7/Factory | Discovered new exit (range 2) 3405 | -7/Factory | Identified exit to Storage 3406 | -7/Factory | Entered Storage 3652 | -7/Storage | Destroyed 10 combat bots 3667 | -7/Storage | Build established: Skirmisher 3939 | -7/Storage | Discovered new exit (range 19) 4144 | -7/Storage | Repaired Assault Cannon 4362 | -7/Storage | Repaired Assault Cannon 5185 | -7/Storage | Core integrity fell below 50% 5245 | -7/Storage | Lost 3 parts (1p1n1w) 5333 | -7/Storage | Core integrity fell below 20% 5447 | -7/Storage | Discovered new exit (range 5) 5452 | -7/Storage | Identified exit to Factory 5529 | -7/Storage | Entered Factory 5529 | -6/Factory | Evolved 2 slots: Propulsion x1, Utility x1 5747 | -6/Factory | Discovered new exit (range 10) 5752 | -6/Factory | Build established: Scavenger-Mutant 5765 | -6/Factory | Identified exit to Factory 5771 | -6/Factory | Discovered new exit (range 17) 5824 | -6/Factory | Identified exit to Lower Caves 6012 | -6/Factory | Entered another Factory area 6012 | -5/Factory | Evolved 2 slots: Power x1, Utility x1 6156 | -5/Factory | Identified exit to DSF 6157 | -5/Factory | Entered DSF 6199 | -5/DSF | Additional patrols routed to DSF 6255 | -5/DSF | Lost 8 parts (1p2n4u1w) 6283 | -5/DSF | Discovered new exit (range 14) 6299 | -5/DSF | Identified exit to Factory 6309 | -5/DSF | Entered Factory 6309 | -4/Factory | Evolved 2 slots: Utility x2 6339 | -4/Factory | Lost 4 parts (1p2u1w) 6392 | -4/Factory | Discovered new exit (range 17) 6403 | -4/Factory | Identified exit to Research 6442 | -4/Factory | Entered Research 6442 | -3/Research | Evolved 2 slots: Utility x2 6526 | -3/Research | Found Antimissile System 6597 | -3/Research | Build established: Hacker-Scout 7124 | -3/Research | Lost 4 parts (1p3u) 7473 | -3/Research | Lost 15 parts (3p3n6u3w) 7546 | -3/Research | Core integrity fell below 50% 7582 | -3/Research | Lost 5 parts (4n1w) 7594 | -3/Research | Core integrity fell below 20% 7606 | -3/Research | Destroyed by S-43 Plague with Heavy Machine Gun Last Messages --------------- reinforcements to area. 07551_ Cmb. Airjet destroyed. 07551_ Knocked back. 07556_ Acquired Com. HERF Cannon. 07568_ Acquired 9 matter. 07584_ System corrupted: Matter fused (-10). 07584_ Imp. Hacking Suite severed. 07584_ Slammed into C-35 Carver. 07585_ Slug penetrates Wall. 07586_ Slammed into C-35 Carver. 07587_ Com. HERF Cannon severed. 07587_ Slammed into C-35 Carver. 07588_ Core Analyzer destroyed. 07590_ Enh. Optical Array severed. 07597_ Acquired Q-thruster. 07599_ Q-thruster severed. 07599_ Slammed into C-35 Carver. 07599_ Destabilizing: Core damaged (-13). 07600_ Core Analyzer destroyed. 07604_ Imp. Signal Interpreter severed. Map ----- +----------------------------------------------------+ | ?????????????????????????????????????????????????? | | ?????????????????????????????????????????????????? | | ?????????????????????????????????????????????????? | | ?????????????????????????????????????????????????? | | ?????????????????????????????????????????????????? | | ?????????????????????????????????????????????????? | | ?????????????????????????????????????????????????? | | ?????????????????????????????????????????????????? | | ?????????????????????????????????????????????????? | | ?????????????????????????????????????????????????? | | ?????????????????????????????????????????????????? | | ?????????????????????????????????????????????????? | | ?????????????????????????????????????????????????? | | ?????????????????????????????????????????????????? | | ?????????##########??????????????????????????????? | | ?????????# = #??????????????????????????????? | | ?????????# ! #???????????#????###???????????? | | ?????????# #?????????? #??? /???????????? | | ????+????# """" #?????????? #?? ????????????? | | ????# ???# """" #????????? #? ""??????????????? | | ????# ??# """" #????????? # "???????????????? | | ????# ??# """" #???????? k ?????????????????? | | ????# ?# #???????? #??????????????????? | | ????# # = #??????? #??????????????????? | | ##### ###+############# #?????????+????????? | | cA k @ #????????? ????????? | | s c #????????? ????????? | | s #????????# ????????? | | s s A #????????# ????????? | | ##########/#############+####????????# #???????? | | ????????# #?????????????????????# +???????? | | ????????# #?????????????????????# #???????? | | ????????# #?????????????????????# #???????? | | ????????# #?????????????????????# #???????? | | ????????# """#?????????????????????# #??###### | | ????????# """#?????????????????????# #??# | | ????????# """#?????????????????????# #??# | | ????????# ! #?????????????????????# #??# | | ????????# #???????????????????### #### | | ????????###+########################## ## | | ??????????#]#???# ## | | ??????????# #???# ## | | ??????????# #???# ## | | #?????????# #???# !! ###### ## | | #/####????# #???# !! """ #????## ### | | ????# "???# !! """ #?????# =#?# | | ?### "##?# """ #?????# * #?# | | """ ?# #?# +?????# !#?###### | | """" # #?# #????## ##????# | | """" # #?# #????# #????# | +----------------------------------------------------+ Best States ------------- Heat Dissipation 77 Energy Generation 53 Energy Capacity 460 Matter Stores 549 Matter Capacity 550 Sight Range 22 Robot Scan Range 16 Terrain Scan Density 10 Power Amplification 20 Additional Mass Support 9 Evasion (%) 55 Targeting Accuracy 16 Target Analysis 8 Core Analysis 9 Recoil Reduction 2 Matter Filtering 30 Offensive Hacking 48 Item Schematics ----------------- None Robot Schematics ------------------ None Fabricated ------------ Nothing Alien Tech Used ----------------- None Achievements -------------- GoHome() Challenges ------------ None Game ------ Seed EnergyGlidesysChronowheel Manual? 0 Play Time 02:09:32 Cumulative 102.7 hours Start 2024.01.28 @ 19:19:49 End 2024.01.31 @ 19:10:21 Sessions 7 Manual Loads 0 Difficulty Rogue Special Mode None Game No. 85 Rogue 85 Adventurer 0 Explorer 0 Win Type - Total 0 Types 0/0/0/0/0/0/0/0/0 Lore% 20 Gallery% 44 Achievement% 24 Wizard Run 0 Options --------- ASCII 0 Keyboard 1 Movement Arrows Keybinds 0 Fullscreen 1 Font 24/Smallcaps Map View 76x50 Tactical HUD 1 Map Filters NONE Filters NONE Steam 1 RUN: 14bb10e2-33de-4937-81a1-5d425de50776